bitfinex-derivatives/quotes_SOLF0:USTF0_20251002
["timestamp","ask_amount","ask_price","bid_price","bid_amount"]
[1759421987707,3.23333168,228.41,228.39,4.79]
[1759421988004,3.23333168,228.4,228.39,4.79]
[1759421990204,3.23333168,228.4,228.39,12.42]
[1759421990613,3.23318005,228.46,228.39,12.42]
[1759421990913,3.23318005,228.45,228.42,3.9373]
[1759421991115,3.23318005,228.44,228.42,3.9373]
[1759421991308,5.17966481,228.51,228.39,4.79]
[1759421991309,3.23318005,228.43,228.39,4.79]
[1759421991503,3.23318005,228.42,228.4,3.9376]
[1759421991705,0.5,228.48,228.4,3.9376]
[1759421991706,3.23317795,228.41,228.4,3.9376]
[1759421992309,3.23317795,228.41,228.4,11.5676]
[1759421992519,0.5,228.48,228.4,11.5676]
[1759421992823,0.5,228.48,228.4,3.9376]
[1759421992824,3.23315975,228.47,228.4,3.9376]
[1759421993014,8.61606481,228.49,228.39,4.79]
[1759421993015,3.23315975,228.46,228.39,4.79]
[1759421993216,7.67015975,228.45,228.39,4.79]
[1759421993410,0.5,228.43,228.39,4.79]
[1759421993610,4.67966481,228.46,228.39,4.79]
[1759421993611,3.73315975,228.42,228.39,4.79]
[1759421993810,3.23315975,228.41,228.39,4.79]
[1759421994016,3.73315975,228.4,228.39,4.79]
[1759421996315,3.23315975,228.4,228.39,4.79]
[1759422000514,3.73315975,228.4,228.39,4.79]
[1759422000922,4.17315975,228.4,228.39,4.79]
[1759422002216,3.73315975,228.4,228.39,4.79]
[1759422002516,119.93986192,228.4,228.39,4.79]
[1759422002711,5.05986192,228.4,228.39,4.79]
[1759422002911,3.23315975,228.4,228.39,4.79]
[1759422003117,3.73315975,228.4,228.39,4.79]
[1759422003714,4.17315975,228.4,228.39,4.79]
[1759422004023,5.99986192,228.4,228.39,4.79]
[1759422004420,9.93766192,228.4,228.39,4.79]
[1759422004721,123.85766192,228.4,228.39,4.79]
[1759422005219,123.83766192,228.4,228.39,4.79]
[1759422006527,3.9386,228.36,228.33,2.27]
[1759422006716,0.5,228.34,228.33,2.27]
[1759422006921,0.5,228.34,228.24,7.5]
[1759422006922,3.73315975,228.34,228.24,7.5]
[1759422007127,3.73315975,228.34,228.19,1.82670217]
[1759422007128,1.82670217,228.29,228.19,1.82670217]
[1759422007428,0.5,228.24,228.11,7.5]
[1759422007618,117.57315975,228.23,228.13,5.76900217]
[1759422007820,5.05986192,228.22,228.13,5.76900217]
[1759422008026,3.23315975,228.21,228.13,5.76900217]
[1759422008228,7.17415975,228.22,228.11,7.5]
[1759422008427,3.23315975,228.21,228.11,7.5]
[1759422008826,3.23315975,228.21,228.13,7.5]
[1759422009326,117.55315975,228.21,228.13,7.5]
[1759422009519,0.5,228.17,228.0,7.5]
[1759422009718,114.32,228.16,228.0,7.5]
[1759422009922,3.22034896,228.15,228.0,7.5]
[1759422010817,0.5,228.14,228.0,7.5]
[1759422011727,0.5,228.14,228.0,11.4446]
[1759422011927,0.5,228.14,228.0,7.5]
[1759422012223,0.5,228.08,227.92,7.5]
[1759422012429,114.34,228.07,227.95,7.5]
[1759422012627,0.5,228.14,227.98,7.5]
[1759422012818,114.54,228.13,228.0,3.9447]
[1759422013024,3.20672056,228.12,228.01,7.5]
[1759422013430,114.54,228.11,228.01,7.5]
[1759422013632,3.70236178,228.1,227.93,61.3809]
[1759422013830,3.70236178,228.1,227.92,65.78227122]
[1759422013831,3.70236178,228.1,227.95,7.5]
[1759422014028,3.70236178,228.1,227.96,3.9452]
[1759422014227,3.70236178,228.1,227.97,7.5]
[1759422014734,7.64536178,228.1,227.97,7.5]
[1759422015027,114.54,228.09,227.97,7.5]
[1759422015331,117.74236178,228.08,227.97,7.5]
[1759422015530,114.54,228.08,227.97,7.5]
[1759422016223,114.54,228.08,227.91,61.3854]
[1759422016224,114.98,228.14,228.02,7.5]
[1759422016424,114.48,228.14,228.04,65.74987122]
[1759422016630,114.48,228.14,228.06,3.9435]
[1759422016824,4.10228624,228.15,228.06,3.9435]
[1759422017129,4.10228624,228.15,228.09,7.5]
[1759422017926,318.82,228.18,228.11,7.5]
[1759422018126,162.01259239,228.22,228.11,7.5]
[1759422018330,3.18843016,228.21,228.11,7.5]
[1759422018522,0.5,228.2,228.05,7.5]
[1759422018928,0.5,228.2,228.06,3.9436]
[1759422019734,0.5,228.2,228.07,7.5]
[1759422020032,114.5,228.19,228.07,7.5]
[1759422020233,3.18843016,228.18,228.07,7.5]
[1759422020532,117.62843016,228.18,228.07,7.5]
[1759422020731,114.44,228.18,228.07,7.5]
[1759422020931,3.18902491,228.17,228.07,7.5]
[1759422021928,114.42,228.18,228.07,7.5]
[1759422022433,3.6898548,228.17,228.07,7.5]
[1759422023629,7.6316548,228.17,228.07,7.5]
[1759422023829,3.1898548,228.17,228.07,7.5]
[1759422024036,3.1898548,228.21,228.1,7.39]
[1759422024331,3.1898548,228.21,228.12,3.9425]
[1759422025134,3.1898548,228.21,228.13,7.39]
[1759422025937,3.1898548,228.21,228.14,3.9423]
[1759422026533,3.1898548,228.21,228.13,7.39]
[1759422027430,3.1898548,228.2,228.13,7.39]
[1759422027629,3.1898548,228.21,228.13,7.39]
[1759422027826,3.1898548,228.2,228.13,7.39]
[1759422028025,3.1898548,228.21,228.13,7.39]
[1759422028334,3.1898548,228.2,228.13,7.39]
[1759422028535,3.1898548,228.21,228.13,7.39]
[1759422028738,3.1898548,228.2,228.13,11.3324]
[1759422028931,3.1898548,228.21,228.13,11.3324]
[1759422029433,3.1898548,228.2,228.13,7.39]
[1759422029734,3.1898548,228.19,228.13,7.39]
[1759422029934,3.1898548,228.18,228.13,7.39]
[1759422030130,3.1898548,228.17,228.05,7.39]
[1759422030336,3.1898548,228.16,228.05,7.39]
[1759422030529,3.1898548,228.15,228.05,11.3337]
[1759422030733,3.1898548,228.19,228.05,11.3337]
[1759422030934,69.5098548,228.18,228.05,7.39]
[1759422031131,3.6998548,228.17,228.05,7.39]
[1759422031337,3.1898548,228.16,228.05,7.39]
[1759422031536,3.1898548,228.15,228.05,7.39]
[1759422031741,3.1898548,228.14,228.05,7.39]
[1759422031940,3.6998548,228.13,228.05,7.39]
[1759422032139,3.1898548,228.12,227.98,7.64]
[1759422032339,0.51,228.1,227.98,7.64]
[1759422032644,3.1898548,228.09,227.98,7.64]
[1759422032844,3.1898548,228.08,227.98,7.64]
[1759422033037,3.1898548,228.07,227.98,7.64]
[1759422033237,3.1898548,228.06,227.98,7.64]
[1759422033430,3.1898548,228.09,227.98,7.64]
[1759422033632,3.1898548,228.08,227.98,7.64]
[1759422033834,3.1898548,228.07,227.98,7.64]
[1759422034138,3.1898548,228.06,227.98,7.64]
[1759422034344,3.1898548,228.05,227.98,7.64]
[1759422034540,3.1898548,228.04,227.98,7.64]
[1759422034846,3.1898548,228.08,227.98,7.64]
[1759422035039,3.1898548,228.07,227.98,7.64]
[1759422035238,4.39837122,228.05,227.73,13.12]
[1759422035440,61.3522,228.04,227.79,7.64]
[1759422035740,0.51,228.01,227.79,7.64]
[1759422035936,3.1898548,228.0,227.79,7.64]
[1759422036144,3.1898548,227.99,227.86,7.64]
[1759422036339,3.1898548,227.98,227.87,7.64]
[1759422036534,3.1898548,228.0,227.88,4.39837122]
[1759422036735,3.1898548,228.0,227.93,3.9459]
[1759422036938,3.1898548,228.04,227.94,7.64]
[1759422037139,3.1898548,228.03,227.94,7.64]
[1759422037340,3.1898548,228.02,227.94,7.64]
[1759422037540,3.1898548,228.01,227.94,7.64]
[1759422037739,3.1898548,228.05,227.94,7.64]
[1759422037939,3.1898548,228.04,227.94,7.64]
[1759422038132,3.1898548,228.03,227.94,7.64]
[1759422038335,3.1898548,228.02,227.94,7.64]
[1759422038543,3.1898548,228.01,227.94,7.64]
[1759422038843,3.1898548,228.05,227.98,69.0068]
[1759422039046,3.1898548,228.12,228.01,7.64]
[1759422039244,3.1898548,228.11,228.01,7.64]
[1759422039444,3.1898548,228.1,228.01,7.64]
[1759422039637,3.1898548,228.09,228.01,7.64]
[1759422039837,0.51,228.15,228.02,3.9443]
[1759422040038,3.20052031,228.14,228.02,3.9443]
[1759422040333,3.20052031,228.13,228.05,7.64]
[1759422040536,3.20052031,228.17,228.05,7.64]
[1759422040742,3.20052031,228.16,228.05,68.988]
[1759422040944,319.08,228.19,228.08,7.64]
[1759422041241,3.20119579,228.18,228.08,7.64]
[1759422041538,3.20119579,228.17,228.09,3.9431]
[1759422041732,3.20119579,228.16,228.08,7.64]
[1759422041937,3.20313843,228.21,228.12,7.64]
[1759422042136,3.20313843,228.2,228.14,7.64]
[1759422042341,114.42,228.27,228.13,7.64]
[1759422042537,3.20465212,228.26,228.13,7.64]
[1759422042743,3.20465212,228.25,228.14,3.9422]
[1759422042948,3.20465212,228.24,228.13,7.64]
[1759422043139,3.20465212,228.23,228.13,7.64]
[1759422043339,3.20465212,228.22,228.13,7.64]
[1759422043542,3.20465212,228.21,228.13,7.64]
[1759422043740,3.20465212,228.2,228.13,7.64]
[1759422043940,3.20465212,228.19,228.13,7.64]
[1759422044240,3.20465212,228.18,228.1,7.64]
[1759422044543,9.12996481,228.26,228.12,7.64]
[1759422044746,3.2109698,228.25,228.12,7.64]
[1759422045046,3.2109698,228.24,228.12,7.64]
[1759422045247,3.2109698,228.23,228.12,7.64]
[1759422045547,3.2109698,228.22,228.13,3.9423]
[1759422045746,3.2109698,228.21,228.13,3.9423]
[1759422045942,3.2109698,228.2,228.15,0.02867701]
[1759422046137,3.2109698,228.19,228.16,7.64]
[1759422046340,0.51,228.26,228.16,7.64]
[1759422046539,0.02871393,228.19,228.15,0.02867701]
[1759422046941,3.21339967,228.18,228.15,0.02867701]
[1759422047144,0.02871393,228.19,228.15,0.02867701]
[1759422047347,3.21557228,228.18,228.15,0.02867701]
[1759422047547,3.21557228,228.17,228.15,0.02867701]
[1759422047745,3.21557228,228.16,228.15,0.02867701]
[1759422047945,3.72557228,228.16,228.15,0.02867701]
[1759422050847,8.84523709,228.16,228.15,0.02867701]
[1759422051050,4.16557228,228.16,228.04,3.9439]
[1759422051345,3.21557228,228.15,228.06,3.9436]
[1759422051550,3.21557228,228.14,228.06,61.3457]
[1759422051749,3.21557228,228.13,228.1,3.9429]
[1759422051948,4.88142084,228.19,228.11,7.64]
[1759422051949,3.21557228,228.12,228.11,7.64]
[1759422052848,3.21557228,228.12,228.08,7.64]
[1759422053043,3.21557228,228.11,228.08,7.64]
[1759422053248,0.0279532,228.14,228.08,7.64]
[1759422053450,3.22886959,228.13,228.05,7.64]
[1759422053751,3.22886959,228.12,228.05,7.64]
[1759422053953,3.22886959,228.11,228.05,7.64]
[1759422054156,0.0279532,228.14,228.08,3.9431]
[1759422054354,3.22916876,228.13,228.09,7.64]
[1759422054555,3.22916876,228.12,228.08,3.9431]
[1759422054752,3.22916876,228.11,228.05,11.5837]
[1759422054954,3.22916876,228.1,228.06,7.64]
[1759422055154,0.0279532,228.14,228.06,7.64]
[1759422055356,3.22918467,228.13,228.06,7.64]
[1759422055557,3.22918467,228.12,228.06,7.64]
[1759422055757,3.22918467,228.11,228.05,11.5837]
[1759422055960,3.22918467,228.1,228.05,3.9437]
[1759422056160,3.22918467,228.09,228.06,7.64]
[1759422056460,0.0279532,228.14,228.06,7.64]
[1759422056664,3.22958617,228.13,228.06,7.64]
[1759422056956,3.22958617,228.12,228.05,3.9437]
[1759422057157,3.22958617,228.11,228.05,3.9437]
[1759422057354,3.22958617,228.1,228.06,7.64]
[1759422057554,0.0279532,228.14,228.06,7.64]
[1759422057755,3.22982599,228.13,228.06,7.64]
[1759422057956,3.22982599,228.12,228.06,7.64]
[1759422058261,3.22982599,228.11,228.05,3.9437]
[1759422058457,3.22982599,228.1,228.05,3.9437]
[1759422058654,0.0279532,228.14,228.06,7.64]
[1759422058854,3.23011727,228.13,228.06,7.64]
[1759422059055,3.23011727,228.12,228.07,3.9435]
[1759422059259,0.0279532,228.14,228.08,7.64]
[1759422059453,0.0279532,228.14,228.06,7.64]
[1759422059655,0.51,228.19,228.11,3.9427]
[1759422059860,3.23010913,228.18,228.11,7.64]
[1759422060062,3.23010913,228.17,228.11,11.5828]
[1759422060361,3.23010913,228.16,228.12,7.64]
[1759422060558,3.23010913,228.15,228.13,3.9424]
[1759422060760,0.51,228.23,228.13,7.64]
[1759422060962,0.03120849,228.16,228.06,7.64]
[1759422061262,3.23084664,228.15,228.06,7.64]
[1759422061465,3.23084664,228.14,228.06,7.64]
[1759422061665,3.23084664,228.13,228.06,7.64]
[1759422061959,3.23084664,228.12,228.06,7.64]
[1759422062151,0.03120849,228.16,228.06,7.64]
[1759422062357,3.23144768,228.15,228.06,7.64]
[1759422062562,3.23144768,228.14,228.06,7.64]
[1759422062758,3.23144768,228.13,228.06,7.64]
[1759422062958,3.23144768,228.12,228.06,7.64]
[1759422063160,9.82222689,228.29,228.06,7.64]
[1759422063161,0.03052045,228.13,228.06,68.9856]
[1759422063460,0.03052045,228.13,228.06,7.64]
[1759422063866,3.23168729,228.21,228.06,7.64]
[1759422064068,3.9416,228.19,228.09,3.9431]
[1759422064252,3.23168729,228.18,228.09,3.9431]
[1759422064459,0.0304372,228.12,228.03,7.63]
[1759422064761,0.0304372,228.12,228.08,3.9433]
[1759422065460,0.0304372,228.12,228.09,7.63]
[1759422065664,0.0304372,228.12,228.08,3.9433]
[1759422065862,0.0304372,228.12,228.04,61.3511]
[1759422065863,0.0304372,228.12,228.1,3.943]
[1759422066161,0.0304372,228.12,228.11,7.63]
[1759422066964,0.0304372,228.12,228.03,7.63]
[1759422067266,0.0304372,228.12,228.05,7.63]
[1759422067561,0.0304372,228.12,228.09,3.943]
[1759422067767,0.0304372,228.12,228.1,7.63]
[1759422067968,0.0304372,228.12,228.09,11.573]
[1759422068158,0.0304372,228.12,228.09,7.63]
[1759422068365,0.0304372,228.12,228.0,7.63]
[1759422068774,3.23168729,228.11,228.0,7.63]
[1759422068969,3.23168729,228.1,228.0,7.63]
[1759422069168,0.0304372,228.12,228.0,7.63]
[1759422069169,3.23168729,228.11,228.0,7.63]
[1759422069369,0.0304372,228.12,228.0,7.63]
[1759422069674,3.23168729,228.13,228.02,7.63]
[1759422069869,3.23168729,228.14,228.02,7.63]
[1759422070172,3.23168729,228.13,228.05,7.63]
[1759422070374,0.03300676,228.08,228.02,7.63]
[1759422070572,0.03300676,228.08,228.05,7.63]
[1759422070766,0.03300676,228.08,228.0,7.63]
[1759422071776,3.9438,228.06,227.97,3.9452]
[1759422071966,3.23168729,228.05,227.95,7.63]
[1759422072168,3.23168729,228.04,227.95,7.63]
[1759422072470,3.73168729,228.03,227.95,7.63]
[1759422072671,3.23168729,228.02,227.95,7.63]
[1759422072867,3.23168729,228.01,227.9,7.63]
[1759422073074,3.73168729,228.0,227.9,7.63]
[1759422073370,0.5,228.0,227.9,7.63]
[1759422073570,3.23168729,227.99,227.9,7.63]
[1759422073768,4.4447,228.0,227.89,5.92117629]
[1759422073769,3.23168729,227.98,227.89,5.92117629]
[1759422073968,3.23168729,227.99,227.89,5.92117629]
[1759422074173,3.23168729,227.98,227.89,5.92117629]
[1759422074374,0.03104889,227.97,227.89,5.92117629]
[1759422074875,0.03104889,227.97,227.86,7.63]
[1759422075175,3.73168729,227.96,227.86,7.63]
[1759422075370,3.73168729,227.96,227.82,3.9476]
[1759422075673,0.5,227.91,227.81,7.63]
[1759422076476,3.73168729,227.91,227.81,7.63]
[1759422076675,0.02895825,227.88,227.83,3.9475]
[1759422076877,0.02895825,227.88,227.83,61.4076]
[1759422077273,0.02895825,227.88,227.85,3.9472]
[1759422077471,0.02895825,227.88,227.86,7.63]
[1759422078075,0.02895825,227.88,227.83,7.63]
[1759422078274,0.02895825,227.88,227.82,11.5777]
[1759422078874,0.02895825,227.88,227.85,7.63]
[1759422079080,0.02895825,227.88,227.84,7.63]
[1759422079475,0.02895825,227.88,227.87,7.63]
[1759422081381,4.4451,227.98,227.87,7.63]
[1759422081382,0.5,227.98,227.87,7.63]
[1759422082683,3.9452,227.97,227.87,7.63]
[1759422083581,3.9457,227.95,227.87,7.63]
[1759422084183,3.71908637,227.98,227.87,7.63]
[1759422084380,3.21908637,227.99,227.87,7.63]
[1759422084776,319.06,228.0,227.89,7.13]
[1759422084977,319.06,228.0,227.91,7.13]
[1759422085181,13.83235337,228.03,227.91,7.13]
[1759422085381,3.21451333,228.02,227.92,7.13]
[1759422085585,13.28235337,228.03,227.94,7.13]
[1759422085881,0.55,228.06,227.94,7.13]
[1759422086086,3.76435904,228.06,227.94,7.13]
[1759422086282,0.55,228.06,227.94,7.13]
[1759422086683,13.65710654,228.06,227.94,7.13]
[1759422086883,3.21435904,228.05,227.94,7.13]
[1759422087089,0.55,228.06,227.94,7.13]
[1759422087285,3.76435904,228.06,227.94,7.13]
[1759422087484,114.3,228.05,227.94,7.13]
[1759422087688,7.15835904,228.04,227.94,7.13]
[1759422087979,7.70835904,228.04,227.94,7.13]
[1759422089379,7.70835904,228.04,227.94,11.0757]
[1759422089579,3.76435904,228.04,227.94,11.0757]
[1759422090882,3.76435904,228.04,227.96,3.9454]
[1759422091086,3.21435904,228.05,227.94,7.13]
[1759422091483,3.21435904,228.05,227.96,3.9452]
[1759422093388,3.21435904,228.05,227.97,11.585]
[1759422095291,3.21435904,228.05,227.97,7.64]
[1759422095498,3.75435904,228.05,227.88,7.64]
[1759422095685,3.21435904,228.04,227.88,7.64]
[1759422095990,3.21435904,228.04,227.79,61.4175]
[1759422095991,0.54,228.01,227.84,7.64]
[1759422096291,0.54,227.99,227.84,7.64]
[1759422096491,3.21435904,227.98,227.84,7.64]
[1759422096693,3.21435904,227.97,227.84,7.64]
[1759422096879,3.9456,227.95,227.85,3.9471]
[1759422098396,3.9456,227.95,227.84,7.64]
[1759422098989,3.9459,227.94,227.84,7.64]
[1759422099595,7.16025904,227.94,227.84,7.64]
[1759422099890,3.21435904,227.93,227.84,7.64]
[1759422100290,3.21435904,227.93,227.84,11.5873]
[1759422100491,3.75435904,227.92,227.76,7.64]
[1759422100685,3.75435904,227.92,227.73,121.56699662]
[1759422100686,0.54,227.92,227.79,11.5883]
[1759422100887,3.21435904,227.91,227.79,7.64]
[1759422101089,4.4861,227.92,227.79,7.64]
[1759422101394,3.21435904,227.91,227.79,7.64]
[1759422102094,3.21435904,227.91,227.82,3.9476]
[1759422102294,3.9464,227.9,227.79,7.64]
[1759422102694,3.21435904,227.91,227.82,3.9478]
[1759422103095,3.21435904,227.91,227.82,11.5878]
[1759422103297,3.21435904,227.91,227.8,3.948]
[1759422103499,3.21435904,227.91,227.8,11.588]
[1759422103893,3.21435904,227.91,227.8,7.64]
[1759422104197,3.21435904,227.91,227.82,3.9478]
[1759422104388,3.21435904,227.91,227.8,7.64]
[1759422104593,4.88142084,227.99,227.84,7.64]
[1759422104594,3.21435904,227.95,227.84,7.64]
[1759422104789,3.21435904,227.98,227.84,7.64]
[1759422105093,3.21435904,227.97,227.89,11.5865]
[1759422105296,3.21435904,227.96,227.89,11.5865]
[1759422105601,3.21435904,227.95,227.89,11.5865]
[1759422105894,3.21435904,227.98,227.89,11.5865]
[1759422106091,0.54,227.99,227.89,11.5865]
[1759422106092,3.21435904,227.97,227.91,3.9462]
[1759422106293,0.54,227.99,227.89,7.64]
[1759422106492,3.21435904,228.03,227.93,3.9457]
[1759422106692,3.21435904,228.02,227.93,7.64]
[1759422106893,3.21435904,228.01,227.93,7.64]
[1759422107094,3.21435904,228.03,227.93,7.64]
[1759422107293,3.21435904,228.02,227.93,7.64]
[1759422107495,3.21435904,228.01,227.93,7.64]
[1759422107695,3.21435904,228.03,227.93,7.64]
[1759422107895,3.21435904,228.02,227.93,7.64]
[1759422108095,3.21435904,228.03,227.94,3.9456]
[1759422108298,3.21435904,228.03,227.93,7.64]
[1759422108592,127.75915905,228.08,227.95,7.64]
[1759422108593,3.21435904,228.06,227.95,7.64]
[1759422108788,13.57915905,228.08,227.95,7.64]
[1759422108789,3.21435904,228.05,227.95,7.64]
[1759422108997,3.21435904,228.07,227.95,7.64]
[1759422109202,3.21435904,228.06,227.95,7.64]
[1759422109406,3.21435904,228.05,227.97,7.64]
[1759422109705,3.21435904,228.05,227.96,61.3731]
[1759422109706,3.21435904,228.07,228.0,7.64]
[1759422109897,3.21435904,228.07,227.99,61.3649]
[1759422109898,3.22427102,228.14,228.06,7.64]
[1759422110201,3.22427102,228.13,228.06,7.64]
[1759422110507,3.22427102,228.12,228.06,7.64]
[1759422110795,3.22427102,228.15,228.08,0.03160849]
[1759422111104,3.22427102,228.14,228.08,0.03160849]
[1759422111296,0.02868452,228.11,228.1,7.64]
[1759422111999,3.22427102,228.15,228.09,7.64]
[1759422112195,3.22427102,228.18,228.09,7.64]
[1759422112399,3.22427102,228.18,228.1,3.9429]
[1759422112598,0.54,228.22,228.1,61.3352]
[1759422112807,3.22348317,228.21,228.11,7.64]
[1759422113101,3.22348317,228.2,228.11,7.64]
[1759422113296,0.02957846,228.16,228.1,61.3352]
[1759422113490,0.02957846,228.16,228.11,7.64]
[1759422113693,0.02957846,228.16,228.13,7.64]
[1759422113894,0.02957846,228.16,228.14,7.64]
[1759422114204,0.02957846,228.16,228.13,0.02940534]
[1759422114697,0.02957846,228.16,228.15,11.5821]
[1759422115195,3.22348317,228.23,228.17,3.9416]
[1759422115398,3.22348317,228.24,228.18,7.64]
[1759422115601,3.22348317,228.26,228.18,7.64]
[1759422115901,3.79348317,228.32,228.21,3.941]
[1759422116103,3.22348317,228.31,228.22,7.64]
[1759422116903,3.22348317,228.31,228.24,0.03068045]
[1759422117305,3.22348317,228.33,228.24,0.03068045]
[1759422117500,3.22348317,228.32,228.24,0.03068045]
[1759422117705,3.22348317,228.35,228.25,7.64]
[1759422118303,7.16228317,228.35,228.25,7.64]
[1759422118503,3.9388,228.35,228.25,7.64]
[1759422118707,17.21699601,228.35,228.25,7.64]
[1759422119005,3.22348317,228.34,228.25,7.64]
[1759422120096,3.22348317,228.37,228.25,11.5803]
[1759422120302,3.22348317,228.37,228.25,7.64]
[1759422120901,61.2694,228.35,228.25,7.64]
[1759422121100,0.57,228.32,228.18,7.64]
[1759422121307,3.79348317,228.32,228.18,7.64]
[1759422121503,0.56,228.3,228.29,0.02932559]
[1759422122103,1.0,228.3,228.16,7.84]
[1759422122307,61.2855,228.29,228.16,7.84]
[1759422122510,3.22348317,228.28,228.16,7.84]
[1759422122699,61.8513,228.27,228.13,3.9424]
[1759422122900,3.22348317,228.26,228.13,3.9424]
[1759422123105,3.22348317,228.26,228.11,7.84]
[1759422123306,4.5011,228.22,228.2,0.03301844]
[1759422123503,3.9411,228.22,228.2,0.03301844]
[1759422123809,0.56,228.21,228.2,0.03301844]
[1759422124008,3.9417,228.18,228.06,11.7835]
[1759422124508,3.9417,228.18,228.06,7.84]
[1759422126112,0.56,228.17,228.06,7.84]
[1759422126612,72.54,228.17,228.06,7.84]
[1759422126813,3.78348317,228.16,228.01,7.84]
[1759422127012,3.9427,228.12,228.01,7.84]
[1759422127309,0.56,228.12,228.01,7.84]
[1759422128413,3.9428,228.11,228.01,7.84]
[1759422128809,3.78348317,228.12,228.01,7.84]
[1759422129106,0.56,228.12,228.01,7.84]
[1759422129911,13.56772146,228.12,228.01,7.84]
[1759422131206,8.35276543,228.16,228.05,7.84]
[1759422131413,0.56,228.15,228.05,7.84]
[1759422132814,13.75522103,228.15,228.05,7.84]
[1759422133010,3.20274535,228.14,228.05,7.84]
[1759422133211,0.56,228.15,228.05,7.84]
[1759422133916,3.20274535,228.16,228.05,7.84]
[1759422134109,3.20274535,228.19,228.05,7.84]
[1759422134311,127.69961892,228.2,228.05,7.84]
[1759422134506,3.20274535,228.19,228.05,7.84]
[1759422134914,3.20274535,228.19,228.09,7.84]
[1759422136011,3.9417,228.18,228.09,7.84]
[1759422136710,3.20274535,228.19,228.09,7.84]
[1759422137311,318.94,228.22,228.09,7.84]
[1759422137611,114.44,228.25,228.09,7.84]
[1759422137816,7.14352985,228.24,228.09,7.84]
[1759422138215,3.20292985,228.24,228.09,7.84]
[1759422138416,16.02780524,228.24,228.09,7.84]
[1759422138615,61.8653,228.22,228.09,7.84]
[1759422138815,61.8653,228.22,228.0,61.3621]
[1759422138816,0.56,228.19,227.99,7.84]
[1759422139120,3.23583331,228.19,228.14,0.03013931]
[1759422139411,0.56,228.18,228.14,0.03013931]
[1759422139716,113.86,228.17,228.05,7.84]
[1759422140112,3.20359364,228.16,228.05,7.84]
[1759422140815,0.56,228.15,227.99,7.84]
[1759422141013,0.56,228.15,227.97,4.41076543]
[1759422141014,0.56,228.15,228.02,7.84]
[1759422141518,0.56,228.15,228.04,3.944]
[1759422141719,0.56,228.15,228.05,7.84]
[1759422143310,0.56,228.15,227.97,7.84]
[1759422143616,3.76359364,228.15,227.98,61.3683]
[1759422143918,0.56,228.15,228.01,7.84]
[1759422144418,3.9427,228.12,228.01,11.7845]
[1759422145522,3.943,228.1,228.01,7.84]
[1759422146923,3.20359364,228.14,228.01,7.84]
[1759422147121,3.20359364,228.13,228.01,7.84]
[1759422147322,3.20359364,228.12,228.02,3.9443]
[1759422147518,61.3382,228.1,227.95,7.2]
[1759422147723,3.76359364,228.09,227.95,7.2]
[1759422147923,3.9437,228.06,227.95,7.2]
[1759422148418,3.20359364,228.05,227.95,7.2]
[1759422148624,3.20359364,228.08,227.96,7.2]
[1759422148826,3.20359364,228.13,227.99,4.41076543]
[1759422149028,3.20359364,228.12,228.02,3.9444]
[1759422149326,3.20359364,228.11,228.03,7.2]
[1759422149526,3.76359364,228.1,227.96,3.9453]
[1759422149721,3.76359364,228.1,227.94,11.61076543]
[1759422149722,3.20359364,228.09,227.97,7.2]
[1759422149916,3.20359364,228.08,227.97,7.2]
[1759422150120,7.14709364,228.07,227.97,11.1452]
[1759422150425,3.20359364,228.06,227.97,7.2]
[1759422150722,3.20359364,228.05,227.97,7.2]